[Event "Chinese Team-ch Men 2025"]
[Site "Zhang Jiakou Hebei"]
[Date "2025.04.29"]
[Round "5.17"]
[White "Wang, Yiye"]
[Black "Xu, Yinglun"]
[Result "1/2-1/2"]
[Annotator "RC"]
[ECO "C11"]
[WhiteElo "2446"]
[BlackElo "2522"]
[PlyCount "36"]
[EventDate "2025.04.26"]
[EventType "team-tourn"]
[EventCountry "CHN"]
[SourceTitle "playchess.com"]
[Source "ChessBase"]
[SourceQuality "1"]
[TimeControl "5400+30"]

1. d4 {[%emt 0:00:14]} e6 {[%emt 0:00:25]} 2. e4 {[%emt 0:00:38]} d5 {[%emt 0:00:34]} 3. Nc3 {[%emt 0:01:34]} Nf6 {[%emt 0:00:50]} 4. e5 {[%emt 0:01:11]} Nfd7 {[%emt 0:00:35]} 5. f4 {[%emt 0:02:21]} c5 {[%emt 0:01:30]} 6. Nf3 {[%emt 0:01:01]} Nc6 {[%emt 0:00:51]} 7. Be3 {[%emt 0:01:20]} cxd4 {[%emt 0:01:24]} 8. Nxd4 {[%emt 0:00:09]} Qb6 {[%emt 0:00:08]} 9. Ncb5 {[%emt 0:06:15]} a6 {[%emt 0:03:42]} 10. Nf5 {[%emt 0:01:44]} Bc5 {[%emt 0:01:00]} 11. Nbd6+ {[%emt 0:01:07]} Kf8 {[%emt 0:00:53]} 12. Qh5 {[%emt 0:00:54]} Nd8 {[%emt 0:00:35]} 13. Nxg7 {[%emt 0:00:49]} Bxe3 {[%emt 0:02:31]} 14. Nxe6+ {[%emt 0:00:19]} fxe6 {[%emt 0:01:48]} 15. Qh6+ {[%emt 0:00:24]} Kg8 {[%emt 0:00:13]} 16. Qg5+ {[%emt 0:00:13]} Kf8 {[%emt 0:00:05]} 17. Qh6+ {[%emt 0:00:05]} Kg8 {[%emt 0:00:03]} 18. Qg5+ {[%emt 0:00:07]} Kf8 {[%emt 0:00:06]} 1/2-1/2

[Event "Chinese Team-ch Men 2025"]
[Site "Zhang Jiakou Hebei"]
[Date "2025.04.29"]
[Round "5.18"]
[White "Zhao, Chenxi"]
[Black "Hou, Yifan b"]
[Result "1-0"]
[Annotator "RC"]
[ECO "B30"]
[WhiteElo "2453"]
[BlackElo "2313"]
[PlyCount "59"]
[EventDate "2025.04.26"]
[EventType "team-tourn"]
[EventCountry "CHN"]
[SourceTitle "playchess.com"]
[Source "ChessBase"]
[SourceQuality "1"]
[TimeControl "5400+30"]

1. e4 {[%emt 0:00:03]} c5 {[%emt 0:00:14]} 2. Nf3 {[%emt 0:00:05]} Nc6 {[%emt 0:00:30]} 3. Bb5 {[%emt 0:00:02]} e6 {[%emt 0:00:57]} 4. Bxc6 {[%emt 0:00:16]} bxc6 {[%emt 0:00:12]} 5. d3 {[%emt 0:00:04]} Ne7 {[%emt 0:01:44]} 6. Nbd2 {[%emt 0:00:08]} f6 {[%emt 0:05:40]} 7. h4 {[%emt 0:02:48]} h5 {[%emt 0:02:58]} 8. e5 {[%emt 0:00:39]} Ng6 {[%emt 0:09:23]} 9. Qe2 {[%emt 0:03:36]} Qc7 {[%emt 0:08:11]} 10. Nc4 {[%emt 0:00:39]} Ba6 {[%emt 0:00:45]} 11. Qe4 {[%emt 0:00:17]} Kf7 {[%emt 0:01:04]} 12. Bf4 {[%emt 0:01:12]} Be7 {[%emt 0:23:53]} 13. exf6 {[%emt 0:01:39]} Qxf4 {[%emt 0:09:06]} 14. Nfe5+ {[%emt 0:00:25]} Kg8 {[%emt 0:02:18]} 15. f7+ {[%emt 0:00:02]} Qxf7 {[%emt 0:00:07]} 16. Nxf7 {[%emt 0:00:04]} Kxf7 {[%emt 0:00:06]} 17. Rh3 {[%emt 0:00:12]} Bxc4 {[%emt 0:00:45]} 18. Qxc4 {[%emt 0:01:42]} Ne5 {[%emt 0:00:45]} 19. Qc3 {[%emt 0:00:28]} d6 {[%emt 0:00:07]} 20. d4 {[%emt 0:01:14]} cxd4 {[%emt 0:00:17]} 21. Qxd4 {[%emt 0:00:04]} c5 {[%emt 0:00:36]} 22. Qe4 {[%emt 0:00:22]} Rab8 {[%emt 0:00:27]} 23. Rb3 {[%emt 0:00:58]} a5 {[%emt 0:01:12]} 24. Kf1 {[%emt 0:01:30]} c4 {[%emt 0:01:09]} 25. Rb7 {[%emt 0:01:04]} Rxb7 {[%emt 0:00:18]} 26. Qxb7 {[%emt 0:00:03]} Rd8 {[%emt 0:00:23]} 27. Re1 {[%emt 0:00:32]} Rd7 {[%emt 0:00:59]} 28. Qe4 {[%emt 0:00:06]} Bf6 {[%emt 0:01:39]} 29. f4 {[%emt 0:00:07]} d5 {[%emt 0:00:06]} 30. Qe2 {[%emt 0:00:09]} 1-0

[Event "Chinese Team-ch Men 2025"]
[Site "Zhang Jiakou Hebei"]
[Date "2025.04.29"]
[Round "5.19"]
[White "Fan, Huifeng"]
[Black "Wu, Yixing"]
[Result "1-0"]
[Annotator "RC"]
[ECO "B22"]
[WhiteElo "2178"]
[BlackElo "2406"]
[PlyCount "87"]
[EventDate "2025.04.26"]
[EventType "team-tourn"]
[EventCountry "CHN"]
[SourceTitle "playchess.com"]
[Source "ChessBase"]
[SourceQuality "1"]
[TimeControl "5400+30"]

1. e4 {[%emt 0:00:04]} c5 {[%emt 0:00:04]} 2. c3 {[%emt 0:00:11]} d5 {[%emt 0:00:06]} 3. exd5 {[%emt 0:00:04]} Nf6 {[%emt 0:00:03]} 4. Bb5+ {[%emt 0:02:19]} Nbd7 {[%emt 0:00:05]} 5. Nf3 {[%emt 0:00:29]} a6 {[%emt 0:00:17]} 6. Be2 {[%emt 0:00:05]} Nxd5 {[%emt 0:00:14]} 7. d4 {[%emt 0:00:05]} e6 {[%emt 0:00:09]} 8. O-O {[%emt 0:02:14]} Qc7 {[%emt 0:00:07]} 9. Re1 {[%emt 0:18:13]} Bd6 {[%emt 0:06:44]} 10. Nbd2 {[%emt 0:29:15]} cxd4 {[%emt 0:02:20]} 11. Ne4 {[%emt 0:03:17]} dxc3 {[%emt 0:07:40]} 12. Nxd6+ {[%emt 0:00:15]} Qxd6 {[%emt 0:00:09]} 13. bxc3 {[%emt 0:00:05]} Qc5 {[%emt 0:10:59]} 14. c4 {[%emt 0:02:40]} Nc3 {[%emt 0:05:52]} 15. Qd3 {[%emt 0:00:32]} Nxe2+ {[%emt 0:00:18]} 16. Rxe2 {[%emt 0:00:06]} b5 {[%emt 0:00:33]} 17. Qe4 {[%emt 0:09:41]} Rb8 {[%emt 0:03:06]} 18. Qg4 {[%emt 0:00:48]} g6 {[%emt 0:17:43]} 19. Bh6 {[%emt 0:02:51]} Qxc4 {[%emt 0:01:51]} 20. Re4 {[%emt 0:00:44]} Qd5 {[%emt 0:07:44]} 21. Rd4 {[%emt 0:02:35]} Qf5 {[%emt 0:03:25]} 22. Qg3 {[%emt 0:00:08]} e5 {[%emt 0:06:19]} 23. Re1 {[%emt 0:13:25]} f6 {[%emt 0:00:46]} 24. Bg7 {[%emt 0:01:27]} Rg8 {[%emt 0:05:21]} 25. Rxd7 {[%emt 0:03:59]} Kxd7 {[%emt 0:08:48]} 26. Bxf6 {[%emt 0:00:59]} Qxf6 {[%emt 0:00:15]} 27. Nxe5+ {[%emt 0:00:46]} Kc7 {[%emt 0:01:35]} 28. Ng4+ {[%emt 0:00:36]} Qd6 {[%emt 0:00:02]} 29. Rc1+ {[%emt 0:00:06]} Kd7 {[%emt 0:00:01]} 30. Nf6+ {[%emt 0:03:47]} Qxf6 {[%emt 0:02:00]} 31. Qc7+ {[%emt 0:00:04]} Ke8 {[%emt 0:01:01]} 32. Qxb8 {[%emt 0:00:09]} Ke7 {[%emt 0:03:35]} 33. Qc7+ {[%emt 0:01:16]} Kf8 {[%emt 0:00:54]} 34. Rd1 {[%emt 0:00:19]} Qf7 {[%emt 0:04:28]} 35. Qxc8+ {[%emt 0:00:17]} Kg7 {[%emt 0:00:01]} 36. Qc3+ {[%emt 0:00:08]} Kh6 {[%emt 0:00:50]} 37. Qh3+ {[%emt 0:00:11]} Kg5 {[%emt 0:00:10]} 38. Qe3+ {[%emt 0:00:08]} Kf6 {[%emt 0:01:16]} 39. Rd6+ {[%emt 0:01:14]} Kg7 {[%emt 0:00:20]} 40. Qd4+ {[%emt 0:00:06]} Kh6 {[%emt 0:00:13]} 41. Qd2+ {[%emt 0:00:11]} Kh5 {[%emt 0:00:19]} 42. Rd7 {[%emt 0:00:33]} Qe6 {[%emt 0:02:37]} 43. Rxh7+ {[%emt 0:00:08]} Kg4 {[%emt 0:00:01]} 44. Qd4+ {[%emt 0:00:52]} 1-0

[Event "Chinese Team-ch Men 2025"]
[Site "Zhang Jiakou Hebei"]
[Date "2025.04.29"]
[Round "5.20"]
[White "Ren, Yibai"]
[Black "Qu, Yanqiao"]
[Result "1/2-1/2"]
[Annotator "RC"]
[ECO "C42"]
[WhiteElo "2027"]
[BlackElo "1969"]
[PlyCount "123"]
[EventDate "2025.04.26"]
[EventType "team-tourn"]
[EventCountry "CHN"]
[SourceTitle "playchess.com"]
[Source "ChessBase"]
[SourceQuality "1"]
[TimeControl "5400+30"]

1. e4 {[%emt 0:00:06]} e5 {[%emt 0:00:27]} 2. Nf3 {[%emt 0:00:28]} Nf6 {[%emt 0:00:10]} 3. Nxe5 {[%emt 0:00:49]} d6 {[%emt 0:00:10]} 4. Nf3 {[%emt 0:00:05]} Nxe4 {[%emt 0:00:11]} 5. Nc3 {[%emt 0:00:16]} Nxc3 {[%emt 0:00:08]} 6. dxc3 {[%emt 0:00:07]} Nc6 {[%emt 0:01:28]} 7. Bf4 {[%emt 0:00:32]} Be7 {[%emt 0:01:58]} 8. Qd2 {[%emt 0:03:28]} Be6 {[%emt 0:00:10]} 9. O-O-O {[%emt 0:00:14]} Qd7 {[%emt 0:02:29]} 10. h4 {[%emt 0:00:16]} h6 {[%emt 0:00:27]} 11. Kb1 {[%emt 0:00:13]} Bf6 {[%emt 0:04:07]} 12. Nd4 {[%emt 0:02:02]} Nxd4 {[%emt 0:10:41]} 13. cxd4 {[%emt 0:00:06]} d5 {[%emt 0:01:31]} 14. a3 {[%emt 0:03:10]} Be7 {[%emt 0:07:17]} 15. Bd3 {[%emt 0:10:29]} Bd6 {[%emt 0:03:16]} 16. Rde1 {[%emt 0:01:11]} O-O-O {[%emt 0:00:44]} 17. Be5 {[%emt 0:02:43]} Bxe5 {[%emt 0:06:06]} 18. Rxe5 {[%emt 0:00:10]} Rde8 {[%emt 0:32:54]} 19. Qf4 {[%emt 0:05:16]} Qd6 {[%emt 0:07:33]} 20. Bf5 {[%emt 0:01:16]} Bd7 {[%emt 0:09:54]} 21. Qe3 {[%emt 0:21:17]} Kd8 {[%emt 0:03:34]} 22. Bxd7 {[%emt 0:02:36]} Qxd7 {[%emt 0:00:40]} 23. Re1 {[%emt 0:00:37]} f6 {[%emt 0:00:57]} 24. Rxe8+ {[%emt 0:01:31]} Rxe8 {[%emt 0:00:01]} 25. Qc3 {[%emt 0:00:30]} Rxe1+ {[%emt 0:00:06]} 26. Qxe1 {[%emt 0:00:01]} a6 {[%emt 0:00:35]} 27. Qb4 {[%emt 0:00:30]} c6 {[%emt 0:00:29]} 28. Qf8+ {[%emt 0:01:41]} Kc7 {[%emt 0:00:15]} 29. g3 {[%emt 0:00:59]} Qg4 {[%emt 0:00:32]} 30. Qe7+ {[%emt 0:01:41]} Qd7 {[%emt 0:00:03]} 31. Qe3 {[%emt 0:01:16]} Qf5 {[%emt 0:00:35]} 32. f3 {[%emt 0:01:55]} Qh3 {[%emt 0:00:30]} 33. Qf4+ {[%emt 0:00:32]} Kb6 {[%emt 0:00:51]} 34. b3 {[%emt 0:00:27]} Qe6 {[%emt 0:00:25]} 35. a4 {[%emt 0:01:19]} g5 {[%emt 0:01:23]} 36. hxg5 {[%emt 0:00:58]} hxg5 {[%emt 0:00:01]} 37. Qb8 {[%emt 0:00:17]} Qe7 {[%emt 0:00:18]} 38. g4 {[%emt 0:02:43]} c5 {[%emt 0:02:44]} 39. dxc5+ {[%emt 0:04:06]} Kxc5 {[%emt 0:00:06]} 40. Qa7+ {[%emt 0:02:09]} Kc6 {[%emt 0:00:09]} 41. Qd4 {[%emt 0:01:49]} Qe5 {[%emt 0:00:15]} 42. Qd3 {[%emt 0:00:35]} Qe1+ {[%emt 0:00:45]} 43. Ka2 {[%emt 0:00:20]} Qe5 {[%emt 0:00:14]} 44. Qd2 {[%emt 0:01:23]} Kc7 {[%emt 0:02:23]} 45. Qa5+ {[%emt 0:01:37]} Kb8 {[%emt 0:00:52]} 46. Qc5 {[%emt 0:00:28]} Qe6 {[%emt 0:01:14]} 47. Qd4 {[%emt 0:01:32]} Qe5 {[%emt 0:00:22]} 48. Qd3 {[%emt 0:00:14]} Ka7 {[%emt 0:00:25]} 49. Qd2 {[%emt 0:04:07]} Kb8 {[%emt 0:00:24]} 50. Qb4 {[%emt 0:01:01]} Ka7 {[%emt 0:01:04]} 51. Qc5+ {[%emt 0:00:18]} Kb8 {[%emt 0:00:45]} 52. b4 {[%emt 0:01:07]} Qe6 {[%emt 0:00:23]} 53. Kb2 {[%emt 0:00:44]} b6 {[%emt 0:00:45]} 54. Qf2 {[%emt 0:03:49]} Kb7 {[%emt 0:00:04]} 55. a5 {[%emt 0:02:43]} bxa5 {[%emt 0:00:51]} 56. bxa5 {[%emt 0:00:01]} Qc6 {[%emt 0:00:32]} 57. Qe1 {[%emt 0:06:36]} Qb5+ {[%emt 0:00:08]} 58. Kc1 {[%emt 0:00:09]} Qc5 {[%emt 0:00:13]} 59. Kb2 {[%emt 0:00:46]} Qb5+ {[%emt 0:00:02]} 60. Kc1 {[%emt 0:00:05]} Qc5 {[%emt 0:00:05]} 61. Kb2 {[%emt 0:00:03]} Qb5+ {[%emt 0:00:05]} 62. Kc1 {[%emt 0:00:08]} 1/2-1/2

[Event "Chinese Team-ch Men 2025"]
[Site "Zhang Jiakou Hebei"]
[Date "2025.04.29"]
[Round "5.21"]
[White "Lin, Weiguo"]
[Black "Xu, Minghui"]
[Result "1-0"]
[Annotator "RC"]
[ECO "D52"]
[WhiteElo "2382"]
[BlackElo "2459"]
[PlyCount "93"]
[EventDate "2025.04.26"]
[EventType "team-tourn"]
[EventCountry "CHN"]
[SourceTitle "playchess.com"]
[Source "ChessBase"]
[SourceQuality "1"]
[TimeControl "5400+30"]

1. d4 {[%emt 0:00:03]} Nf6 {[%emt 0:00:34]} 2. c4 {[%emt 0:00:08]} e6 {[%emt 0:00:06]} 3. Nf3 {[%emt 0:00:20]} d5 {[%emt 0:06:05]} 4. Nc3 {[%emt 0:00:07]} Nbd7 {[%emt 0:00:26]} 5. Bg5 {[%emt 0:01:51]} c6 {[%emt 0:02:06]} 6. e3 {[%emt 0:00:31]} Qa5 {[%emt 0:00:07]} 7. Nd2 {[%emt 0:00:36]} Bb4 {[%emt 0:02:14]} 8. Qc2 {[%emt 0:00:09]} O-O {[%emt 0:00:35]} 9. Be2 {[%emt 0:00:18]} c5 {[%emt 0:00:18]} 10. O-O {[%emt 0:04:56]} cxd4 {[%emt 0:07:21]} 11. exd4 {[%emt 0:00:40]} dxc4 {[%emt 0:00:06]} 12. Bxf6 {[%emt 0:00:11]} Nxf6 {[%emt 0:00:06]} 13. Nxc4 {[%emt 0:00:17]} Qd8 {[%emt 0:01:30]} 14. Rfd1 {[%emt 0:02:14]} Bd7 {[%emt 0:06:41]} 15. Bf3 {[%emt 0:05:49]} Rc8 {[%emt 0:02:26]} 16. Ne5 {[%emt 0:03:55]} Qa5 {[%emt 0:05:02]} 17. Rdc1 {[%emt 0:16:11]} Rc7 {[%emt 0:05:55]} 18. a3 {[%emt 0:01:27]} Bd6 {[%emt 0:01:09]} 19. Qe2 {[%emt 0:02:03]} Rfc8 {[%emt 0:02:07]} 20. Rd1 {[%emt 0:00:20]} Ba4 {[%emt 0:05:04]} 21. Re1 {[%emt 0:03:16]} Be8 {[%emt 0:09:12]} 22. h3 {[%emt 0:01:24]} b5 {[%emt 0:06:00]} 23. d5 {[%emt 0:10:50]} exd5 {[%emt 0:16:12]} 24. Ng4 {[%emt 0:00:20]} Nxg4 {[%emt 0:00:35]} 25. Bxg4 {[%emt 0:00:22]} Re7 {[%emt 0:00:41]} 26. Bxc8 {[%emt 0:10:53]} Rxe2 {[%emt 0:00:05]} 27. Rxe2 {[%emt 0:00:07]} Bc6 {[%emt 0:00:40]} 28. Rd1 {[%emt 0:00:56]} Qd8 {[%emt 0:07:57]} 29. Bg4 {[%emt 0:01:04]} d4 {[%emt 0:01:50]} 30. Red2 {[%emt 0:00:51]} Be5 {[%emt 0:01:39]} 31. Ne2 {[%emt 0:00:32]} h5 {[%emt 0:03:37]} 32. Nxd4 {[%emt 0:04:44]} Bxd4 {[%emt 0:00:38]} 33. Rxd4 {[%emt 0:00:15]} Qg5 {[%emt 0:00:06]} 34. h4 {[%emt 0:01:02]} Qe5 {[%emt 0:01:07]} 35. Bh3 {[%emt 0:00:53]} a5 {[%emt 0:00:21]} 36. Rd6 {[%emt 0:01:07]} Be4 {[%emt 0:00:29]} 37. R1d2 {[%emt 0:02:39]} b4 {[%emt 0:00:14]} 38. axb4 {[%emt 0:00:45]} axb4 {[%emt 0:00:05]} 39. g3 {[%emt 0:06:31]} b3 {[%emt 0:00:18]} 40. Rd8+ {[%emt 0:00:38]} Kh7 {[%emt 0:00:05]} 41. Bf1 {[%emt 0:00:09]} g6 {[%emt 0:02:22]} 42. R8d7 {[%emt 0:00:54]} Qf5 {[%emt 0:02:25]} 43. Bg2 {[%emt 0:02:18]} Bc2 {[%emt 0:00:22]} 44. Rb7 {[%emt 0:01:10]} Qf6 {[%emt 0:04:55]} 45. Rdd7 {[%emt 0:00:39]} Qxb2 {[%emt 0:00:33]} 46. Rxf7+ {[%emt 0:00:12]} Kg8 {[%emt 0:00:10]} 47. Bd5 {[%emt 0:01:53]} 1-0

[Event "Chinese Team-ch Men 2025"]
[Site "Zhang Jiakou Hebei"]
[Date "2025.04.29"]
[Round "5.22"]
[White "Chen, Yuan"]
[Black "Yu, Zhe"]
[Result "1-0"]
[Annotator "RC"]
[ECO "D06"]
[WhiteElo "2286"]
[BlackElo "1837"]
[PlyCount "87"]
[EventDate "2025.04.26"]
[EventType "team-tourn"]
[EventCountry "CHN"]
[SourceTitle "playchess.com"]
[Source "ChessBase"]
[SourceQuality "1"]
[TimeControl "5400+30"]

1. Nf3 {[%emt 0:00:11]} Nf6 {[%emt 0:00:12]} 2. d4 {[%emt 0:00:14]} d5 {[%emt 0:00:05]} 3. e3 {[%emt 0:00:47]} Bf5 {[%emt 0:04:22]} 4. c4 {[%emt 0:01:21]} e6 {[%emt 0:02:14]} 5. Qb3 {[%emt 0:01:45]} Qc8 {[%emt 0:01:53]} 6. Nc3 {[%emt 0:01:59]} c6 {[%emt 0:00:38]} 7. Nh4 {[%emt 0:00:29]} Bg4 {[%emt 0:00:19]} 8. h3 {[%emt 0:01:07]} Bh5 {[%emt 0:00:27]} 9. g4 {[%emt 0:00:07]} Bg6 {[%emt 0:00:06]} 10. Nxg6 {[%emt 0:02:43]} hxg6 {[%emt 0:00:03]} 11. Be2 {[%emt 0:00:08]} Bd6 {[%emt 0:04:30]} 12. Bd2 {[%emt 0:02:05]} Nbd7 {[%emt 0:03:01]} 13. O-O-O {[%emt 0:00:53]} Qc7 {[%emt 0:01:38]} 14. Kb1 {[%emt 0:02:01]} g5 {[%emt 0:04:08]} 15. Rc1 {[%emt 0:01:29]} a6 {[%emt 0:01:43]} 16. Bf3 {[%emt 0:03:18]} Qb6 {[%emt 0:04:07]} 17. Qa4 {[%emt 0:19:00]} Bb4 {[%emt 0:03:29]} 18. cxd5 {[%emt 0:08:45]} exd5 {[%emt 0:01:21]} 19. Qc2 {[%emt 0:00:58]} Bxc3 {[%emt 0:01:04]} 20. Bxc3 {[%emt 0:00:09]} Nf8 {[%emt 0:04:36]} 21. Qf5 {[%emt 0:02:30]} Ne6 {[%emt 0:00:28]} 22. h4 {[%emt 0:00:27]} gxh4 {[%emt 0:11:58]} 23. g5 {[%emt 0:00:10]} Nh5 {[%emt 0:01:42]} 24. Rxh4 {[%emt 0:01:32]} g6 {[%emt 0:00:11]} 25. Qe5 {[%emt 0:00:04]} O-O-O {[%emt 0:09:59]} 26. Bxd5 {[%emt 0:04:44]} Qb5 {[%emt 0:24:30]} 27. Bxe6+ {[%emt 0:00:34]} fxe6 {[%emt 0:00:06]} 28. Qxe6+ {[%emt 0:00:05]} Kb8 {[%emt 0:00:04]} 29. Qxg6 {[%emt 0:01:28]} Rdg8 {[%emt 0:00:16]} 30. Qe4 {[%emt 0:02:40]} Rxg5 {[%emt 0:01:15]} 31. f4 {[%emt 0:00:42]} Rd5 {[%emt 0:01:19]} 32. Qc2 {[%emt 0:00:24]} Re8 {[%emt 0:03:04]} 33. e4 {[%emt 0:00:21]} Rd7 {[%emt 0:00:18]} 34. a4 {[%emt 0:00:07]} Qc4 {[%emt 0:02:45]} 35. Rxh5 {[%emt 0:00:08]} Qf7 {[%emt 0:01:34]} 36. Rf5 {[%emt 0:00:47]} Qg6 {[%emt 0:01:44]} 37. d5 {[%emt 0:00:15]} cxd5 {[%emt 0:01:44]} 38. Rxd5 {[%emt 0:00:13]} Rxd5 {[%emt 0:01:14]} 39. exd5 {[%emt 0:00:05]} Qxc2+ {[%emt 0:00:50]} 40. Kxc2 {[%emt 0:00:07]} Kc7 {[%emt 0:00:48]} 41. Be5+ {[%emt 0:00:10]} Kd7 {[%emt 0:00:06]} 42. Kd3 {[%emt 0:00:04]} Rc8 {[%emt 0:01:09]} 43. Rxc8 {[%emt 0:00:13]} Kxc8 {[%emt 0:00:02]} 44. f5 {[%emt 0:00:05]} 1-0

[Event "Chinese Team-ch Men 2025"]
[Site "Zhang Jiakou Hebei"]
[Date "2025.04.29"]
[Round "5.23"]
[White "Zhai, Bugong"]
[Black "Chen, Zhi"]
[Result "0-1"]
[Annotator "RC"]
[ECO "A20"]
[WhiteElo "1661"]
[BlackElo "2094"]
[PlyCount "100"]
[EventDate "2025.04.26"]
[EventType "team-tourn"]
[EventCountry "CHN"]
[SourceTitle "playchess.com"]
[Source "ChessBase"]
[SourceQuality "1"]
[TimeControl "5400+30"]

1. c4 {[%emt 0:00:05]} e5 {[%emt 0:00:15]} 2. g3 {[%emt 0:00:10]} c6 {[%emt 0:00:30]} 3. Nf3 {[%emt 0:00:08]} e4 {[%emt 0:00:34]} 4. Nd4 {[%emt 0:00:15]} d5 {[%emt 0:00:41]} 5. cxd5 {[%emt 0:00:09]} Qxd5 {[%emt 0:00:13]} 6. Nc2 {[%emt 0:00:08]} Nf6 {[%emt 0:00:45]} 7. Nc3 {[%emt 0:00:28]} Qe5 {[%emt 0:00:16]} 8. Bg2 {[%emt 0:01:52]} Na6 {[%emt 0:09:47]} 9. Ne3 {[%emt 0:04:01]} Bc5 {[%emt 0:04:42]} 10. Qc2 {[%emt 0:06:28]} Bxe3 {[%emt 0:01:13]} 11. fxe3 {[%emt 0:02:23]} Bf5 {[%emt 0:00:16]} 12. a3 {[%emt 0:05:00]} h5 {[%emt 0:00:15]} 13. O-O {[%emt 0:17:12]} h4 {[%emt 0:03:11]} 14. Rxf5 {[%emt 0:01:17]} Qxf5 {[%emt 0:00:03]} 15. Nxe4 {[%emt 0:00:22]} Nxe4 {[%emt 0:01:52]} 16. Qxe4+ {[%emt 0:01:25]} Qxe4 {[%emt 0:00:05]} 17. Bxe4 {[%emt 0:00:05]} Nc5 {[%emt 0:02:35]} 18. Bc2 {[%emt 0:00:06]} hxg3 {[%emt 0:02:12]} 19. hxg3 {[%emt 0:00:06]} Rd8 {[%emt 0:00:23]} 20. e4 {[%emt 0:13:01]} Ne6 {[%emt 0:04:37]} 21. d3 {[%emt 0:02:00]} Rh5 {[%emt 0:01:51]} 22. Be3 {[%emt 0:01:46]} a6 {[%emt 0:04:26]} 23. b4 {[%emt 0:10:32]} Ke7 {[%emt 0:00:29]} 24. Kg2 {[%emt 0:05:53]} Rdh8 {[%emt 0:01:04]} 25. Bg1 {[%emt 0:00:07]} a5 {[%emt 0:13:00]} 26. Rb1 {[%emt 0:01:14]} axb4 {[%emt 0:02:27]} 27. Rxb4 {[%emt 0:09:24]} b5 {[%emt 0:00:41]} 28. d4 {[%emt 0:02:49]} Ra8 {[%emt 0:09:32]} 29. a4 {[%emt 0:02:48]} bxa4 {[%emt 0:01:14]} 30. Bxa4 {[%emt 0:00:36]} c5 {[%emt 0:00:33]} 31. Rb7+ {[%emt 0:07:21]} Kf8 {[%emt 0:00:36]} 32. Bb3 {[%emt 0:00:20]} cxd4 {[%emt 0:01:46]} 33. Bxe6 {[%emt 0:00:39]} fxe6 {[%emt 0:00:02]} 34. Bxd4 {[%emt 0:00:14]} Rg5 {[%emt 0:00:05]} 35. Be3 {[%emt 0:01:47]} Rg6 {[%emt 0:00:37]} 36. Bf4 {[%emt 0:01:06]} Kg8 {[%emt 0:00:05]} 37. Rb5 {[%emt 0:00:25]} Ra4 {[%emt 0:00:21]} 38. Kf3 {[%emt 0:00:19]} Rf6 {[%emt 0:00:05]} 39. e5 {[%emt 0:02:13]} Rf8 {[%emt 0:00:43]} 40. Kg4 {[%emt 0:01:20]} Rf5 {[%emt 0:00:09]} 41. Kh3 {[%emt 0:02:13]} g5 {[%emt 0:00:16]} 42. Bc1 {[%emt 0:00:19]} Re4 {[%emt 0:00:33]} 43. e3 {[%emt 0:01:19]} Rfxe5 {[%emt 0:00:35]} 44. Rxe5 {[%emt 0:00:32]} Rxe5 {[%emt 0:00:03]} 45. Kg4 {[%emt 0:00:19]} Kf7 {[%emt 0:01:11]} 46. Kf3 {[%emt 0:00:30]} Rb5 {[%emt 0:00:36]} 47. Bd2 {[%emt 0:00:16]} Kg6 {[%emt 0:00:22]} 48. Bc3 {[%emt 0:00:08]} Kh5 {[%emt 0:00:29]} 49. Bd4 {[%emt 0:00:26]} Rf5+ {[%emt 0:00:10]} 50. Kg2 {[%emt 0:00:54]} Kg4 {[%emt 0:00:05]} 0-1

[Event "Chinese Team-ch Men 2025"]
[Site "Zhang Jiakou Hebei"]
[Date "2025.04.29"]
[Round "5.25"]
[White "Zhang, Ziji"]
[Black "Gong, Changda"]
[Result "1/2-1/2"]
[Annotator "RC"]
[ECO "D30"]
[WhiteElo "2371"]
[BlackElo "2131"]
[PlyCount "61"]
[EventDate "2025.04.26"]
[EventType "team-tourn"]
[EventCountry "CHN"]
[SourceTitle "playchess.com"]
[Source "ChessBase"]
[SourceQuality "1"]
[TimeControl "5400+30"]

1. d4 {[%emt 0:00:05]} d5 {[%emt 0:00:03]} 2. c4 {[%emt 0:00:07]} c6 {[%emt 0:00:03]} 3. Nf3 {[%emt 0:00:17]} Nf6 {[%emt 0:00:05]} 4. e3 {[%emt 0:00:20]} e6 {[%emt 0:00:08]} 5. Nbd2 {[%emt 0:01:16]} c5 {[%emt 0:04:12]} 6. cxd5 {[%emt 0:01:14]} Nxd5 {[%emt 0:00:44]} 7. Nb3 {[%emt 0:08:36]} Nd7 {[%emt 0:04:12]} 8. Be2 {[%emt 0:11:26]} Be7 {[%emt 0:00:54]} 9. O-O {[%emt 0:01:39]} O-O {[%emt 0:00:04]} 10. Nxc5 {[%emt 0:07:26]} Nxc5 {[%emt 0:00:31]} 11. dxc5 {[%emt 0:00:04]} Bxc5 {[%emt 0:00:12]} 12. e4 {[%emt 0:01:00]} Nb4 {[%emt 0:05:22]} 13. a3 {[%emt 0:06:38]} Qxd1 {[%emt 0:00:15]} 14. Rxd1 {[%emt 0:00:07]} Nc6 {[%emt 0:00:44]} 15. Bf4 {[%emt 0:03:59]} f6 {[%emt 0:03:36]} 16. Rac1 {[%emt 0:02:39]} Bb6 {[%emt 0:04:57]} 17. Bc4 {[%emt 0:02:19]} Rd8 {[%emt 0:04:30]} 18. Ba2 {[%emt 0:16:12]} Kf7 {[%emt 0:04:35]} 19. Rxd8 {[%emt 0:07:45]} Bxd8 {[%emt 0:02:23]} 20. Rd1 {[%emt 0:00:38]} Ke8 {[%emt 0:03:21]} 21. Be3 {[%emt 0:03:45]} Bd7 {[%emt 0:03:31]} 22. Nd2 {[%emt 0:00:41]} Bc7 {[%emt 0:05:01]} 23. Nc4 {[%emt 0:02:13]} b6 {[%emt 0:01:07]} 24. h3 {[%emt 0:03:31]} Ke7 {[%emt 0:01:52]} 25. Kf1 {[%emt 0:00:17]} Ne5 {[%emt 0:02:03]} 26. Ke1 {[%emt 0:03:20]} Nxc4 {[%emt 0:02:49]} 27. Bxc4 {[%emt 0:00:05]} Bc6 {[%emt 0:00:21]} 28. f3 {[%emt 0:00:15]} Be5 {[%emt 0:01:18]} 29. Bd4 {[%emt 0:00:50]} Bxd4 {[%emt 0:00:59]} 30. Rxd4 {[%emt 0:00:06]} e5 {[%emt 0:00:06]} 31. Rd2 {[%emt 0:00:12]} 1/2-1/2